fUSD/lending_fUSD_20260608
["ID","MTS","AMOUNT","RATE_DAILY","PERIOD"]
[424456954,1780926646000,-3565.0,0.00017702,2]
[424456950,1780926646000,-552.0,0.00017702,2]
[424456951,1780926646000,-2272.0,0.00017702,2]
[424456948,1780926646000,-1798.80895522,0.00017609,2]
[424456944,1780926646000,-700.0,0.00017466,7]
[424456953,1780926646000,-840.0,0.00017702,2]
[424456942,1780926646000,-1218.59,0.00017424,2]
[424456949,1780926646000,-403.0,0.000177,5]
[424456952,1780926646000,-776.0,0.00017702,2]
[424456960,1780926646000,-150.0,0.00017753,2]
[424456961,1780926646000,-150.0,0.00017753,2]
[424456962,1780926646000,-150.0,0.00017753,2]
[424456957,1780926646000,-390.0,0.00017702,2]
[424456955,1780926646000,-772.0,0.00017702,2]
[424456965,1780926646000,-172.0,0.00017753,2]
[424456959,1780926646000,-150.0,0.00017753,2]
[424456963,1780926646000,-150.0,0.00017753,2]
[424456964,1780926646000,-150.0,0.00017753,2]
[424456967,1780926646000,-1746.53,0.000178,2]
[424456966,1780926646000,-10120.20714548,0.000178,2]
[424456956,1780926646000,-1231.0,0.00017702,2]
[424456958,1780926646000,-150.0,0.00017753,2]
[424457037,1780926647000,-2272.0,0.00018702,2]
[424457039,1780926647000,-840.0,0.00018702,2]
[424457035,1780926647000,-10120.20714548,0.000187,2]
[424457042,1780926647000,-1231.0,0.00018702,2]
[424457045,1780926647000,-1934.38338736,0.00018705,2]
[424457033,1780926647000,-6482.26770674,0.000187,2]
[424457043,1780926647000,-390.0,0.00018702,2]
[424457044,1780926647000,-1328.27659266,0.00018705,2]
[424457040,1780926647000,-3565.0,0.00018702,2]
[424457025,1780926647000,-6482.26770674,0.000185,2]
[424457036,1780926647000,-552.0,0.00018702,2]
[424457034,1780926647000,-3598.87399482,0.000187,2]
[424457058,1780926647000,-3598.87399482,0.000189,2]
[424457038,1780926647000,-776.0,0.00018702,2]
[424457047,1780926647000,-150.0,0.0001876,2]
[424457048,1780926647000,-150.0,0.0001876,2]
[424457046,1780926647000,-150.0,0.0001876,2]
[424457057,1780926647000,-6482.26770674,0.000189,2]
[424457051,1780926647000,-150.0,0.0001876,2]
[424457049,1780926647000,-150.0,0.0001876,2]
[424457056,1780926647000,-500.0,0.00018877,2]
[424457055,1780926647000,-554.58989507,0.00018877,2]
[424457052,1780926647000,-219.0,0.0001876,2]
[424457054,1780926647000,-642.95290479,0.00018877,2]
[424457032,1780926647000,-171496.74,0.000186,2]
[424457053,1780926647000,-500.0,0.00018836,7]
[424457041,1780926647000,-772.0,0.00018702,2]
[424457024,1780926647000,-1124.99999999,0.00018473,2]
[424457014,1780926647000,-300.0,0.00018355,2]
[424457030,1780926647000,-300.0,0.00018599,2]
[424457050,1780926647000,-150.0,0.0001876,2]
[424457007,1780926647000,-10120.20714548,0.000183,2]
[424457004,1780926647000,-6482.26770674,0.000182,2]
[424457002,1780926647000,-150.0,0.0001816,2]
[424457001,1780926647000,-150.0,0.0001816,2]
[424457005,1780926647000,-3598.87399482,0.000182,2]
[424457003,1780926647000,-169.0,0.0001816,2]
[424457006,1780926647000,-184.05441355,0.000182,2]
[424457009,1780926647000,-2323.0,0.0001831,2]
[424457019,1780926647000,-3598.87399482,0.000184,2]
[424457008,1780926647000,-160.0,0.0001831,2]
[424457011,1780926647000,-995.62404537,0.00018342,2]
[424457012,1780926647000,-500.0,0.00018342,2]
[424457010,1780926647000,-500.0,0.00018342,2]
[424457013,1780926647000,-500.0,0.00018342,2]
[424457018,1780926647000,-6482.26770674,0.000184,2]
[424457015,1780926647000,-300.0,0.00018355,2]
[424457017,1780926647000,-85458.76,0.00018356,2]
[424457016,1780926647000,-300.0,0.00018355,2]
[424457022,1780926647000,-231.05511802,0.000184,2]
[424457021,1780926647000,-231.05511802,0.000184,2]
[424457020,1780926647000,-231.05511802,0.000184,2]
[424457028,1780926647000,-700.0,0.00018562,7]
[424457029,1780926647000,-6062.4496903,0.00018579,2]
[424457023,1780926647000,-3551.6,0.0001841,2]
[424457026,1780926647000,-3598.87399482,0.000185,2]
[424457031,1780926647000,-300.0,0.00018599,2]
[424457027,1780926647000,-10120.20714548,0.000185,2]
[424457059,1780926647000,-10120.20714548,0.000189,2]
[424457070,1780926647000,-951.221767,0.00019,2]
[424457107,1780926647000,-150.0,0.00019178,2]
[424457092,1780926647000,-181.7678467,0.0001903,3]
[424457095,1780926647000,-1746.53,0.000191,2]
[424457093,1780926647000,-6482.26770674,0.000191,2]
[424457094,1780926647000,-3598.87399482,0.000191,2]
[424457091,1780926647000,-495.225755,0.00019,2]
[424457110,1780926647000,-250.0,0.00019178,2]
[424457100,1780926647000,-300.0,0.00019177,2]
[424457103,1780926647000,-189.369969,0.00019178,2]
[424457105,1780926647000,-151.0,0.00019178,2]
[424457108,1780926647000,-150.0,0.00019178,2]
[424457101,1780926647000,-189.369969,0.00019178,2]
[424457102,1780926647000,-189.369969,0.00019178,2]
[424457106,1780926647000,-150.0,0.00019178,2]
[424457099,1780926647000,-254.0,0.00019116,2]
[424457109,1780926647000,-219.08599507,0.00019178,2]
[424457104,1780926647000,-189.369969,0.00019178,2]
[424457112,1780926647000,-250.0,0.00019178,2]
[424457111,1780926647000,-250.0,0.00019178,2]
[424457116,1780926647000,-20461.98,0.00019178,2]
[424457117,1780926647000,-151.0,0.00019178,2]
[424457113,1780926647000,-266.01344379,0.00019178,2]
[424457118,1780926647000,-151.0,0.00019178,2]
[424457115,1780926647000,-3000.0,0.00019178,7]
[424457120,1780926647000,-151.0,0.00019178,2]
[424457119,1780926647000,-151.0,0.00019178,2]
[424457061,1780926647000,-300.0,0.00018999,2]
[424457114,1780926647000,-3000.0,0.00019178,2]
[424457090,1780926647000,-495.225755,0.00019,2]
[424457098,1780926647000,-150.0,0.00019116,2]
[424457096,1780926647000,-150.0,0.00019116,2]
[424457097,1780926647000,-150.0,0.00019116,2]
[424457060,1780926647000,-300.0,0.00018999,2]
[424457071,1780926647000,-951.221767,0.00019,2]
[424457062,1780926647000,-5245.09313317,0.00019,2]
[424457064,1780926647000,-7028.14034113,0.00019,2]
[424457065,1780926647000,-10120.20714548,0.00019,2]
[424457067,1780926647000,-151.0,0.00019,2]
[424457066,1780926647000,-151.0,0.00019,2]
[424457068,1780926647000,-151.0,0.00019,2]
[424457089,1780926647000,-495.225755,0.00019,2]
[424457069,1780926647000,-951.221767,0.00019,2]
[424457073,1780926647000,-151.0,0.00019,2]
[424457072,1780926647000,-951.221767,0.00019,2]
[424457085,1780926647000,-2207.354033,0.00019,2]
[424457084,1780926647000,-169.755115,0.00019,2]
[424457063,1780926647000,-440212.48474838,0.00019,2]
[424457075,1780926647000,-161.37214,0.00019,2]
[424457086,1780926647000,-2207.354033,0.00019,2]
[424457076,1780926647000,-260.250992,0.00019,2]
[424457087,1780926647000,-2207.354033,0.00019,2]
[424457082,1780926647000,-151.0,0.00019,2]
[424457081,1780926647000,-169.755123,0.00019,2]
[424457080,1780926647000,-169.755123,0.00019,2]
[424457088,1780926647000,-2207.35403392,0.00019,2]
[424457079,1780926647000,-260.250985,0.00019,2]
[424457077,1780926647000,-260.250992,0.00019,2]
[424457083,1780926647000,-169.755123,0.00019,2]
[424457074,1780926647000,-151.0,0.00019,2]
[424457078,1780926647000,-260.250992,0.00019,2]
[424457167,1780926648000,-536.0,0.00019452,2]
[424457165,1780926648000,-538.9515026,0.00019411,2]
[424457163,1780926648000,-3598.87399482,0.000193,2]
[424457159,1780926648000,-10120.20714548,0.000192,2]
[424457158,1780926648000,-200.869891,0.00019178,2]
[424457162,1780926648000,-6482.26770674,0.000193,2]
[424457160,1780926648000,-1377.42282658,0.00019253,2]
[424457157,1780926648000,-200.869884,0.00019178,2]
[424457156,1780926648000,-200.869884,0.00019178,2]
[424457153,1780926648000,-200.869884,0.00019178,2]
[424457154,1780926648000,-200.869884,0.00019178,2]
[424457166,1780926648000,-717.0,0.00019452,2]
[424457161,1780926648000,-2005.9555727,0.00019253,2]
[424457169,1780926648000,-3598.87399482,0.000195,2]
[424457185,1780926648000,-275.0,0.00019801,2]
[424457174,1780926648000,-556.52077405,0.00019702,2]
[424457171,1780926648000,-10120.20714548,0.000196,2]
[424457170,1780926648000,-151.0,0.00019597,2]
[424457172,1780926648000,-6482.26770674,0.000197,2]
[424457164,1780926648000,-10120.20714548,0.000194,2]
[424457173,1780926648000,-3598.87399482,0.000197,2]
[424457175,1780926648000,-2273.45660128,0.00019702,2]
[424457176,1780926648000,-791.45096348,0.00019702,2]
[424457178,1780926648000,-3581.15927814,0.00019702,2]
[424457179,1780926648000,-779.62532042,0.00019702,2]
[424457180,1780926648000,-1238.03968174,0.00019702,2]
[424457181,1780926648000,-397.12588771,0.00019702,2]
[424457155,1780926648000,-200.869884,0.00019178,2]
[424457168,1780926648000,-6482.26770674,0.000195,2]
[424457152,1780926648000,-200.869884,0.00019178,2]
[424457123,1780926648000,-151.0,0.00019178,2]
[424457148,1780926648000,-200.869884,0.00019178,2]
[424457121,1780926648000,-151.0,0.00019178,2]
[424457124,1780926648000,-151.0,0.00019178,2]
[424457122,1780926648000,-151.0,0.00019178,2]
[424457125,1780926648000,-151.0,0.00019178,2]
[424457126,1780926648000,-151.0,0.00019178,2]
[424457129,1780926648000,-151.0,0.00019178,2]
[424457133,1780926648000,-151.0,0.00019178,2]
[424457130,1780926648000,-151.0,0.00019178,2]
[424457138,1780926648000,-246.021651,0.00019178,2]
[424457128,1780926648000,-151.0,0.00019178,2]
[424457131,1780926648000,-250.166724,0.00019178,2]
[424457134,1780926648000,-151.0,0.00019178,2]
[424457137,1780926648000,-151.0,0.00019178,2]
[424457151,1780926648000,-200.869884,0.00019178,2]
[424457127,1780926648000,-151.0,0.00019178,2]
[424457132,1780926648000,-151.0,0.00019178,2]
[424457139,1780926648000,-200.869884,0.00019178,2]
[424457135,1780926648000,-151.0,0.00019178,2]
[424457142,1780926648000,-200.869884,0.00019178,2]
[424457140,1780926648000,-200.869884,0.00019178,2]
[424457143,1780926648000,-200.869884,0.00019178,2]
[424457144,1780926648000,-200.869884,0.00019178,2]
[424457145,1780926648000,-200.869884,0.00019178,2]
[424457147,1780926648000,-200.869884,0.00019178,2]
[424457146,1780926648000,-200.869884,0.00019178,2]
[424457150,1780926648000,-200.869884,0.00019178,2]
[424457149,1780926648000,-200.869884,0.00019178,2]
[424457141,1780926648000,-200.869884,0.00019178,2]
[424457136,1780926648000,-151.0,0.00019178,2]
[424457189,1780926648000,-151.0,0.00019801,2]
[424457244,1780926648000,-151.0,0.00019801,2]
[424457187,1780926648000,-151.0,0.00019801,2]
[424457229,1780926648000,-152.0,0.00019801,2]
[424457228,1780926648000,-500.0,0.00019801,2]
[424457218,1780926648000,-151.0,0.00019801,2]
[424457223,1780926648000,-151.0,0.00019801,2]
[424457216,1780926648000,-151.0,0.00019801,2]
[424457226,1780926648000,-152.0,0.00019801,2]
[424457220,1780926648000,-151.0,0.00019801,2]
[424457225,1780926648000,-500.0,0.00019801,2]
[424457222,1780926648000,-209.40437684,0.00019801,2]
[424457227,1780926648000,-151.0,0.00019801,2]
[424457219,1780926648000,-721.12765534,0.00019801,2]
[424457221,1780926648000,-152.0,0.00019801,2]
[424457234,1780926648000,-151.0,0.00019801,2]
[424457217,1780926648000,-152.0,0.00019801,2]
[424457232,1780926648000,-500.0,0.00019801,2]
[424457231,1780926648000,-151.0,0.00019801,2]
[424457233,1780926648000,-152.0,0.00019801,2]
[424457239,1780926648000,-151.0,0.00019801,2]
[424457241,1780926648000,-500.0,0.00019801,2]
[424457242,1780926648000,-152.0,0.00019801,2]
[424457240,1780926648000,-151.0,0.00019801,2]
[424457236,1780926648000,-500.0,0.00019801,2]
[424457235,1780926648000,-151.0,0.00019801,2]
[424457238,1780926648000,-152.0,0.00019801,2]
[424457237,1780926648000,-151.0,0.00019801,2]
[424457245,1780926648000,-500.0,0.00019801,2]
[424457243,1780926648000,-151.0,0.00019801,2]
[424457183,1780926648000,-158.99,0.000198,7]
[424457230,1780926648000,-151.0,0.00019801,2]
[424457215,1780926648000,-151.0,0.00019801,2]
[424457224,1780926648000,-151.0,0.00019801,2]
[424457209,1780926648000,-2080.17592889,0.00019801,2]
[424457206,1780926648000,-151.0,0.00019801,2]
[424457184,1780926648000,-10120.20714548,0.000198,2]
[424457188,1780926648000,-200.0,0.00019801,2]
[424457186,1780926648000,-211.33443123,0.00019801,2]
[424457177,1780926648000,-848.14895465,0.00019702,2]
[424457191,1780926648000,-151.0,0.00019801,2]
[424457201,1780926648000,-160.61553387,0.00019801,2]
[424457192,1780926648000,-151.0,0.00019801,2]
[424457193,1780926648000,-693.39197629,0.00019801,2]
[424457190,1780926648000,-151.0,0.00019801,2]
[424457194,1780926648000,-151.0,0.00019801,2]
[424457197,1780926648000,-1428.38747117,0.00019801,2]
[424457198,1780926648000,-693.39197629,0.00019801,2]
[424457199,1780926648000,-151.0,0.00019801,2]
[424457182,1780926648000,-569.0,0.00019726,2]
[424457195,1780926648000,-174.61919141,0.00019801,2]
[424457196,1780926648000,-151.0,0.00019801,2]
[424457212,1780926648000,-151.0,0.00019801,2]
[424457210,1780926648000,-151.0,0.00019801,2]
[424457205,1780926648000,-578.20924308,0.00019801,2]
[424457204,1780926648000,-151.0,0.00019801,2]
[424457207,1780926648000,-209.40437684,0.00019801,2]
[424457211,1780926648000,-152.0,0.00019801,2]
[424457208,1780926648000,-500.0,0.00019801,2]
[424457214,1780926648000,-152.0,0.00019801,2]
[424457203,1780926648000,-4853.74383408,0.00019801,2]
[424457202,1780926648000,-9552.16786547,0.00019801,2]
[424457200,1780926648000,-151.0,0.00019801,2]
[424457213,1780926648000,-209.40437684,0.00019801,2]
[424457286,1780926649000,-80679.05447569,0.0002,2]
[424457285,1780926649000,-1314.72577382,0.0002,2]
[424457288,1780926649000,-1061.24498998,0.0002,2]
[424457293,1780926649000,-152.0,0.0002,2]
[424457275,1780926649000,-152.0,0.00019987,3]
[424457289,1780926649000,-52455.90547044,0.0002,2]
[424457283,1780926649000,-3950.0,0.0002,2]
[424457291,1780926649000,-13124.85068242,0.0002,2]
[424457276,1780926649000,-42566.35581579,0.0002,2]
[424457278,1780926649000,-5291.38452726,0.0002,2]
[424457277,1780926649000,-4959.0,0.0002,2]
[424457284,1780926649000,-26839.42384922,0.0002,2]
[424457282,1780926649000,-25983.54932298,0.0002,2]
[424457292,1780926649000,-2199.999999,0.0002,2]
[424457302,1780926649000,-10120.20714548,0.0002,2]
[424457287,1780926649000,-200.0,0.0002,2]
[424457290,1780926649000,-8000.0,0.0002,2]
[424457295,1780926649000,-10000.0,0.0002,2]
[424457296,1780926649000,-356.68155194,0.0002,2]
[424457297,1780926649000,-10009.1273,0.0002,2]
[424457300,1780926649000,-5000.0,0.0002,2]
[424457299,1780926649000,-4704.08712556,0.0002,5]
[424457298,1780926649000,-26633.681101,0.0002,2]
[424457304,1780926649000,-261.26901201,0.0002,5]
[424457303,1780926649000,-400.0,0.0002,2]
[424457301,1780926649000,-4228.0,0.0002,2]
[424457306,1780926649000,-751.0,0.0002,2]
[424457279,1780926649000,-1557.42699502,0.0002,2]
[424457294,1780926649000,-10241.0372897,0.0002,2]
[424457273,1780926649000,-1424.53,0.00019968,2]
[424457307,1780926649000,-673.0,0.0002,2]
[424457272,1780926649000,-151.0,0.00019966,2]
[424457255,1780926649000,-151.0,0.00019801,2]
[424457250,1780926649000,-152.0,0.00019801,2]
[424457249,1780926649000,-500.0,0.00019801,2]
[424457253,1780926649000,-500.0,0.00019801,2]
[424457248,1780926649000,-151.0,0.00019801,2]
[424457254,1780926649000,-151.0,0.00019801,2]
[424457256,1780926649000,-500.0,0.00019801,2]
[424457252,1780926649000,-151.0,0.00019801,2]
[424457246,1780926649000,-152.0,0.00019801,2]
[424457251,1780926649000,-151.0,0.00019801,2]
[424457247,1780926649000,-151.0,0.00019801,2]
[424457257,1780926649000,-151.0,0.00019801,2]
[424457263,1780926649000,-151.0,0.00019856,2]
[424457274,1780926649000,-402.23200891,0.0001997,2]
[424457261,1780926649000,-719.04747942,0.00019856,2]
[424457259,1780926649000,-500.0,0.00019801,2]
[424457260,1780926649000,-500.0,0.00019801,2]
[424457262,1780926649000,-5033.33235594,0.00019856,2]
[424457268,1780926649000,-151.0,0.00019911,2]
[424457266,1780926649000,-745.65223615,0.00019911,2]
[424457265,1780926649000,-536.0,0.00019863,2]
[424457267,1780926649000,-5219.56565311,0.00019911,2]
[424457264,1780926649000,-717.0,0.00019863,2]
[424457270,1780926649000,-415.26269629,0.00019966,2]
[424457280,1780926649000,-179.21047655,0.0002,2]
[424457281,1780926649000,-1381.670952,0.0002,2]
[424457269,1780926649000,-504632.68394315,0.0001995,15]
[424457271,1780926649000,-5412.68958227,0.00019966,2]
[424457258,1780926649000,-151.0,0.00019801,2]
[424457310,1780926649000,-190.2959377,0.0002,2]
[424457305,1780926649000,-477.0,0.0002,2]
[424457313,1780926649000,-197.53,0.0002,3]
[424457342,1780926649000,-151.0,0.00020076,2]
[424457343,1780926649000,-300.0,0.000201,10]
[424457346,1780926649000,-150.0,0.00020154,3]
[424457354,1780926649000,-238.503537,0.00020273,2]
[424457356,1780926649000,-152.0,0.00020301,4]
[424457353,1780926649000,-717.0,0.00020273,2]
[424457355,1780926649000,-151.0,0.00020296,2]
[424457357,1780926649000,-275.0,0.00020349,2]
[424457345,1780926649000,-151.0,0.00020131,2]
[424457347,1780926649000,-350.0,0.0002016,2]
[424457348,1780926649000,-249.0,0.00020177,2]
[424457349,1780926649000,-151.0,0.00020186,2]
[424457351,1780926649000,-10120.20714548,0.000202,2]
[424457334,1780926649000,-747.53,0.0002,3]
[424457352,1780926649000,-151.0,0.00020241,2]
[424457362,1780926649000,-719.04747942,0.00020349,2]
[424457358,1780926649000,-151.0,0.00020349,2]
[424457360,1780926649000,-181.08010149,0.00020349,2]
[424457367,1780926649000,-500.0,0.00020349,2]
[424457361,1780926649000,-1481.2378076,0.00020349,2]
[424457359,1780926649000,-200.0,0.00020349,2]
[424457364,1780926649000,-304.4434295,0.00020349,2]
[424457366,1780926649000,-151.0,0.00020349,2]
[424457365,1780926649000,-2157.14243826,0.00020349,2]
[424457368,1780926649000,-217.15233878,0.00020349,2]
[424457370,1780926649000,-151.0,0.00020351,2]
[424457369,1780926649000,-151.0,0.00020349,2]
[424457315,1780926649000,-154.46,0.0002,3]
[424457350,1780926649000,-356.68155194,0.000202,2]
[424457335,1780926649000,-747.53,0.0002,3]
[424457363,1780926649000,-9905.59807649,0.00020349,2]
[424457340,1780926649000,-151.0,0.00020021,2]
[424457341,1780926649000,-5820.6385834,0.00020076,2]
[424457320,1780926649000,-681.53,0.0002,3]
[424457371,1780926649000,-3551.6,0.00020381,2]
[424457318,1780926649000,-195.042,0.0002,2]
[424457312,1780926649000,-190.29593772,0.0002,2]
[424457309,1780926649000,-190.2959377,0.0002,2]
[424457317,1780926649000,-1880.0,0.0002,2]
[424457314,1780926649000,-200.0,0.0002,10]
[424457316,1780926649000,-154.46,0.0002,3]
[424457319,1780926649000,-681.53,0.0002,3]
[424457308,1780926649000,-190.2959377,0.0002,2]
[424457321,1780926649000,-681.53,0.0002,3]
[424457332,1780926649000,-747.53,0.0002,3]
[424457331,1780926649000,-200.617915,0.0002,2]
[424457311,1780926649000,-190.2959377,0.0002,2]
[424457330,1780926649000,-7130.07,0.0002,2]
[424457323,1780926649000,-681.56,0.0002,3]
[424457344,1780926649000,-4711.66757848,0.00020131,2]
[424457336,1780926649000,-747.55,0.0002,3]
[424457337,1780926649000,-521.0,0.0002,2]
[424457338,1780926649000,-2000.0,0.0002,7]
[424457333,1780926649000,-747.53,0.0002,3]
[424457339,1780926649000,-5612.95909682,0.00020021,2]
[424457327,1780926649000,-170.38,0.0002,3]
[424457325,1780926649000,-170.38,0.0002,3]
[424457329,1780926649000,-170.4,0.0002,3]
[424457322,1780926649000,-681.53,0.0002,3]
[424457326,1780926649000,-170.38,0.0002,3]
[424457328,1780926649000,-170.38,0.0002,3]
[424457324,1780926649000,-4645.0,0.0002,2]
[424457400,1780926650000,-417.55372129,0.00020897,2]
[424457406,1780926650000,-209.68046565,0.00020897,2]
[424457408,1780926650000,-152.0,0.00020927,6]
[424457407,1780926650000,-1100.0,0.000209,7]
[424457404,1780926650000,-500.0,0.00020897,2]
[424457396,1780926650000,-151.0,0.00020897,2]
[424457402,1780926650000,-2236.95670847,0.00020897,2]
[424457403,1780926650000,-151.93097097,0.00020897,2]
[424457401,1780926650000,-10272.10520532,0.00020897,2]
[424457405,1780926650000,-315.40610973,0.00020897,2]
[424457409,1780926650000,-1381.670952,0.00021,2]
[424457415,1780926650000,-6111.0,0.00021,2]
[424457412,1780926650000,-238.96596679,0.00021,2]
[424457411,1780926650000,-18581.22495933,0.00021,2]
[424457414,1780926650000,-15000.0,0.00021,2]
[424457413,1780926650000,-300.0,0.00021,10]
[424457416,1780926650000,-15000.0,0.00021,2]
[424457418,1780926650000,-15000.0,0.00021,2]
[424457420,1780926650000,-7744.6217433,0.00021,2]
[424457419,1780926650000,-6111.0,0.00021,2]
[424457399,1780926650000,-1536.04360648,0.00020897,2]
[424457426,1780926650000,-13734.82141612,0.00021,2]
[424457410,1780926650000,-500.0,0.00021,2]
[424457397,1780926650000,-200.0,0.00020897,2]
[424457377,1780926650000,-200.0,0.00020595,2]
[424457395,1780926650000,-275.0,0.00020897,2]
[424457417,1780926650000,-4809.27029055,0.00021,2]
[424457372,1780926650000,-356.68155194,0.000204,2]
[424457382,1780926650000,-200.0,0.00020595,2]
[424457375,1780926650000,-168.92431803,0.00020438,2]
[424457374,1780926650000,-1746.53,0.000204,2]
[424457373,1780926650000,-10120.20714548,0.000204,2]
[424457378,1780926650000,-200.0,0.00020595,2]
[424457379,1780926650000,-200.0,0.00020595,2]
[424457381,1780926650000,-200.0,0.00020595,2]
[424457376,1780926650000,-164.0,0.00020591,2]
[424457380,1780926650000,-200.0,0.00020595,2]
[424457384,1780926650000,-200.0,0.00020595,2]
[424457383,1780926650000,-200.0,0.00020595,2]
[424457389,1780926650000,-500.95884429,0.00020629,2]
[424457386,1780926650000,-356.68155194,0.000206,2]
[424457387,1780926650000,-10120.20714548,0.000206,2]
[424457385,1780926650000,-321.0,0.00020595,2]
[424457388,1780926650000,-152.0,0.00020614,5]
[424457390,1780926650000,-717.0,0.00020684,2]
[424457392,1780926650000,-356.68155194,0.000208,2]
[424457391,1780926650000,-700.0,0.00020754,7]
[424457393,1780926650000,-10120.20714548,0.000208,2]
[424457394,1780926650000,-2000.0,0.0002081,2]
[424457398,1780926650000,-187.78006524,0.00020897,2]
[424457425,1780926650000,-6111.0,0.00021,2]
[424457421,1780926650000,-1895.62972782,0.00021,2]
[424457427,1780926650000,-477.0,0.00021,2]
[424457452,1780926650000,-2319.72410669,0.00021445,2]
[424457453,1780926650000,-151.0,0.00021448,2]
[424457454,1780926650000,-8273.5547048,0.00021453,2]
[424457455,1780926650000,-3252.7461308,0.00021453,2]
[424457459,1780926650000,-500.0,0.00021614,10]
[424457456,1780926650000,-10120.20714548,0.000215,2]
[424457461,1780926650000,-7130.07,0.00021689,2]
[424457460,1780926650000,-160.0,0.00021657,2]
[424457457,1780926650000,-152.0,0.00021553,8]
[424457458,1780926650000,-681.89780835,0.00021561,2]
[424457445,1780926650000,-275.0,0.00021445,2]
[424457462,1780926650000,-10120.20714548,0.000217,2]
[424457473,1780926650000,-800.0,0.00021918,2]
[424457463,1780926650000,-1746.53,0.000217,2]
[424457472,1780926650000,-800.0,0.00021918,2]
[424457465,1780926650000,-152.0,0.00021867,9]
[424457470,1780926650000,-151.0,0.00021918,2]
[424457471,1780926650000,-193.981261,0.00021918,2]
[424457467,1780926650000,-1876.25769303,0.00021918,2]
[424457469,1780926650000,-151.0,0.00021918,2]
[424457468,1780926650000,-5000.0,0.00021918,2]
[424457466,1780926650000,-10120.20714548,0.000219,2]
[424457464,1780926650000,-160.0,0.00021704,2]
[424457447,1780926650000,-200.0,0.00021445,2]
[424457474,1780926650000,-800.0,0.00021918,2]
[424457441,1780926650000,-217.15233878,0.0002117,2]
[424457448,1780926650000,-194.72792766,0.00021445,2]
[424457424,1780926650000,-15000.0,0.00021,2]
[424457423,1780926650000,-10120.20714548,0.00021,2]
[424457422,1780926650000,-9140.97023602,0.00021,2]
[424457428,1780926650000,-751.0,0.00021,2]
[424457430,1780926650000,-3555.0,0.00021,2]
[424457431,1780926650000,-1358.0,0.00021,2]
[424457432,1780926650000,-1880.0,0.00021,2]
[424457437,1780926650000,-4645.0,0.00021,2]
[424457436,1780926650000,-13281.94047204,0.00021,2]
[424457433,1780926650000,-382.0,0.00021,2]
[424457429,1780926650000,-673.0,0.00021,2]
[424457435,1780926650000,-1955.22556599,0.00021,2]
[424457442,1780926650000,-10120.20714548,0.000212,2]
[424457434,1780926650000,-1227.0,0.00021,2]
[424457446,1780926650000,-151.0,0.00021445,2]
[424457444,1780926650000,-1200.0,0.000214,2]
[424457449,1780926650000,-915.95312861,0.00021445,2]
[424457439,1780926650000,-500.0,0.00021028,7]
[424457443,1780926650000,-152.0,0.0002124,7]
[424457451,1780926650000,-500.0,0.00021445,2]
[424457450,1780926650000,-10652.17309792,0.00021445,2]
[424457440,1780926650000,-156.587,0.0002117,2]
[424457438,1780926650000,-521.0,0.00021,2]
[424457511,1780926651000,-10120.20714548,0.000221,2]
[424457514,1780926651000,-160.0,0.00022344,2]
[424457520,1780926651000,-152.0,0.00022493,11]
[424457513,1780926651000,-10120.20714548,0.000223,2]